bitfinex-derivatives/quotes_BNBF0:USTF0_20251203
["timestamp","ask_amount","ask_price","bid_price","bid_amount"]
[1764773872460,1.10451063,899.85,898.78,1.031]
[1764773873264,1.10451063,899.86,898.78,1.031]
[1764773874365,1.10451063,899.87,898.78,1.031]
[1764773875265,1.10451063,899.88,898.78,1.031]
[1764773876466,1.10451063,899.87,898.78,1.031]
[1764773876765,1.10451063,899.88,898.78,1.031]
[1764773877161,1.10451063,899.86,898.51,0.82462803]
[1764773877362,1.10451063,899.86,898.5,0.82462803]
[1764773877565,1.10451063,899.88,898.53,0.82462803]
[1764773877764,1.10451063,899.87,898.52,0.82462803]
[1764773878466,1.10451063,899.87,898.51,0.82462803]
[1764773878967,1.10451063,899.87,898.52,0.82462803]
[1764773879469,1.10451063,899.78,898.43,0.82462803]
[1764773879670,1.10451063,899.62,898.53,0.862]
[1764773880172,1.10451063,899.63,898.53,0.862]
[1764773880469,1.10451063,899.63,898.54,0.857]
[1764773881473,1.10451063,899.62,898.54,0.857]
[1764773882173,1.10451063,899.63,898.54,0.857]
[1764773882368,1.10451063,899.64,898.54,0.857]
[1764773883773,1.10451063,899.63,898.54,0.857]
[1764773884476,1.10451063,899.58,898.54,0.857]
[1764773884676,1.10451063,899.37,898.54,0.857]
[1764773885575,1.10451063,899.38,898.54,0.857]
[1764773885777,1.10451063,899.39,898.54,0.857]
[1764773886274,1.10451063,899.41,898.54,0.857]
[1764773886577,0.19340586,900.27,898.54,0.857]
[1764773886578,1.10451063,899.56,898.54,0.857]
[1764773886778,1.10451063,899.58,898.54,0.857]
[1764773886979,1.10451063,899.62,898.54,0.857]
[1764773887172,1.10451063,899.65,898.54,0.857]
[1764773887373,0.19340586,900.27,898.54,0.857]
[1764773887374,1.10451063,899.77,898.54,0.857]
[1764773888375,1.10451063,899.68,898.54,0.857]
[1764773888775,1.10451063,899.62,898.54,0.857]
[1764773889081,0.19340586,900.27,898.54,0.857]
[1764773889082,1.10451063,899.55,898.54,0.857]
[1764773889580,1.10451063,899.54,898.54,0.857]
[1764773891482,1.10451063,899.55,898.54,0.857]
[1764773891680,1.10451063,899.54,898.54,0.857]
[1764773892085,0.19340586,900.27,898.54,0.857]
[1764773892086,1.10451063,899.6,898.54,0.857]
[1764773892285,0.19340586,900.27,898.54,0.857]
[1764773892286,1.10451063,899.69,898.54,0.857]
[1764773893583,1.10451063,899.68,898.54,0.857]
[1764773894987,1.10451063,899.69,898.54,0.857]
[1764773896590,1.10451063,899.7,898.54,0.857]
[1764773896798,1.10451063,899.86,898.55,0.82462803]
[1764773897396,1.10451063,899.87,898.54,1.68162803]
[1764773898395,1.10451063,899.88,898.55,0.82462803]
[1764773898595,0.19340586,900.27,898.54,0.857]
[1764773898596,1.10451063,899.89,898.56,0.82462803]
[1764773899100,1.10451063,899.9,898.56,0.82462803]
[1764773899398,1.10451063,899.99,898.64,0.82462803]
[1764773900401,1.10451063,900.01,898.64,0.82462803]
[1764773901203,1.10451063,900.06,898.69,0.82462803]
[1764773901503,1.10451063,900.12,898.73,0.82462803]
[1764773902702,1.10451063,900.14,898.76,0.82462803]
[1764773902901,1.10451063,900.16,898.75,0.82462803]
[1764773903302,1.10451063,900.17,898.74,0.82462803]
[1764773904304,1.10451063,900.18,898.74,0.82462803]
[1764773904607,1.10451063,900.17,898.73,0.82462803]
[1764773905304,1.10451063,900.18,898.72,0.82462803]
[1764773906507,1.10451063,900.18,898.71,0.82462803]
[1764773906907,1.10451063,900.19,898.72,0.82462803]
[1764773907308,1.10451063,900.21,898.72,0.82462803]
[1764773908311,1.10451063,900.22,898.72,0.82462803]
[1764773909213,1.10451063,900.23,898.72,0.82462803]
[1764773909912,1.10451063,900.23,898.71,0.82462803]
[1764773912416,1.10451063,900.24,898.71,0.82462803]
[1764773912812,1.10451063,900.22,898.72,0.82462803]
[1764773913417,1.10451063,900.21,898.72,0.82462803]
[1764773915219,0.19340586,900.27,898.83,0.82462803]
[1764773915413,0.19340586,900.27,898.54,0.857]
[1764773915414,0.19340586,900.27,898.8,0.82462803]
[1764773915818,0.19340586,900.27,898.54,0.857]
[1764773915819,0.19340586,900.27,898.81,0.82462803]
[1764773916219,1.10451063,900.22,898.73,0.82462803]
[1764773916415,1.10451063,900.2,898.73,0.82462803]
[1764773916920,1.10451063,900.07,898.6,0.82462803]
[1764773917120,1.10451063,900.05,898.59,0.82462803]
[1764773917320,1.65111129,900.22,898.54,0.857]
[1764773917321,1.10451063,900.03,898.6,0.82462803]
[1764773919320,1.10451063,900.01,898.61,0.82462803]
[1764773919817,1.10451063,900.0,898.6,0.82462803]
[1764773920321,1.10451063,899.98,898.62,0.82462803]
[1764773921117,1.10451063,899.98,898.63,1.035]
[1764773921418,1.10451063,899.96,898.63,1.85962803]
[1764773921923,1.10451063,899.9,898.63,1.035]
[1764773922424,1.10451063,899.78,898.63,1.035]
[1764773923321,1.10451063,899.76,898.63,1.035]
[1764773924322,1.10451063,899.75,898.63,1.035]
[1764773925324,1.10451063,899.74,898.63,1.035]
[1764773925826,1.10451063,899.81,898.63,1.035]
[1764773926021,1.10451063,899.8,898.63,1.035]
[1764773926220,1.65111129,899.97,898.63,1.035]
[1764773926221,1.10451063,899.71,898.63,1.035]
[1764773926423,1.10451063,899.67,898.63,1.035]
[1764773926623,1.10451063,899.66,898.63,1.035]
[1764773926825,1.10451063,899.68,898.63,1.035]
[1764773927122,1.10451063,899.51,898.63,1.035]
[1764773927422,1.10451063,899.49,898.63,1.035]
[1764773927620,0.19340586,900.27,898.63,1.035]
[1764773927621,1.10451063,899.48,898.63,1.035]
[1764773928823,1.10451063,899.45,898.63,1.035]
[1764773929621,1.10451063,899.46,898.63,1.035]
[1764773930221,2.86915638,900.27,898.63,1.035]
[1764773930222,1.10451063,899.48,898.63,1.035]
[1764773931324,1.10451063,899.49,898.63,1.035]
[1764773932423,1.10451063,899.5,898.63,1.035]
[1764773933027,1.10451063,899.49,898.63,1.035]
[1764773933523,1.10451063,899.44,898.63,1.035]
[1764773933928,1.10451063,899.45,898.63,1.035]
[1764773934124,1.10451063,899.44,898.63,1.035]
[1764773934325,1.10451063,899.45,898.63,1.035]
[1764773935129,1.10451063,899.45,898.64,0.937]
[1764773935328,1.10451063,899.47,898.64,0.937]
[1764773935629,1.10451063,899.46,898.64,0.937]
[1764773936026,1.10451063,899.47,898.64,0.937]
[1764773936528,1.10451063,899.48,898.64,0.937]
[1764773936830,1.10451063,899.45,898.64,0.937]
[1764773937228,1.10451063,899.47,898.64,0.937]
[1764773937726,1.10451063,899.47,898.65,0.875]
[1764773938227,1.10451063,899.48,898.65,0.875]
[1764773938928,1.10451063,899.49,898.65,0.875]
[1764773939329,1.10451063,899.5,898.65,0.875]
[1764773940431,1.10451063,899.49,898.65,0.875]
[1764773941432,1.10451063,899.5,898.65,0.875]
[1764773941632,1.10451063,899.4,898.65,0.875]
[1764773943133,1.10451063,899.41,898.65,0.875]
[1764773943333,2.67575052,900.22,898.65,0.875]
[1764773943334,1.10451063,899.38,898.65,0.875]
[1764773943534,1.10451063,899.37,898.65,0.875]
[1764773943833,1.10451063,899.35,898.65,0.875]
[1764773944033,1.10451063,899.34,898.65,0.875]
[1764773944234,1.10451063,899.36,898.65,0.875]
[1764773944434,1.10451063,899.37,898.65,0.875]
[1764773944734,1.10451063,899.34,898.65,0.875]
[1764773945130,1.10451063,899.26,898.65,0.875]
[1764773945333,1.10451063,899.2,898.65,0.875]
[1764773945630,1.10451063,899.14,898.65,0.875]
[1764773946432,1.10451063,899.15,898.65,0.875]
[1764773946630,1.10451063,899.16,898.65,0.875]
[1764773946931,1.10451063,899.15,898.65,0.875]
[1764773947430,1.10451063,899.19,898.65,0.875]
[1764773947830,2.67575052,900.0,898.65,0.875]
[1764773947831,1.10451063,899.16,898.65,0.875]
[1764773948031,1.10451063,899.15,898.65,0.875]
[1764773948335,1.10451063,899.02,898.65,0.875]
[1764773948532,1.10451063,898.99,898.65,0.875]
[1764773948835,1.10451063,898.86,898.65,0.875]
[1764773952140,1.10451063,898.95,898.65,0.875]
[1764773953144,1.10451063,898.91,898.65,0.875]
[1764773953343,1.10451063,898.9,898.65,0.875]
[1764773953541,1.10451063,898.78,898.65,0.875]
[1764773954444,1.10451063,898.77,898.65,0.875]
[1764773954741,1.10451063,898.66,898.65,0.875]
[1764773955542,1.10451063,898.72,898.65,0.875]
[1764773955746,1.10451063,898.73,898.65,0.875]
[1764773956347,1.10451063,898.74,898.65,0.875]
[1764773956846,2.67575052,899.55,898.65,0.875]
[1764773956847,1.10451063,898.73,898.65,0.875]
[1764773957442,1.10451063,898.74,898.65,0.875]
[1764773957844,1.10451063,898.81,898.65,0.875]
[1764773958345,1.10451063,898.82,898.65,0.875]
[1764773959246,1.10451063,898.83,898.65,0.875]
[1764773959450,1.10451063,898.96,898.65,0.875]
[1764773960545,1.10451063,899.04,898.65,0.875]
[1764773961249,2.67575052,899.84,898.65,0.875]
[1764773961250,1.10451063,899.09,898.65,0.875]
[1764773961545,1.10451063,899.1,898.65,0.875]
[1764773962350,1.10451063,899.15,898.65,0.875]
[1764773963149,1.10451063,899.19,898.65,0.875]
[1764773963346,1.10451063,899.2,898.65,0.875]
[1764773963645,0.19365879,899.03,898.65,0.875]
[1764773979463,1.29816942,899.03,898.65,0.875]
[1764773979661,1.29816942,899.03,898.51,1.105]
[1764773980060,0.19365879,899.03,898.51,1.105]
[1764773980266,1.10451063,899.01,898.51,1.105]
[1764773980466,1.10451063,899.0,898.51,1.105]
[1764773980863,1.10451063,899.01,898.51,1.105]
[1764773981068,1.10451063,898.94,898.51,1.105]
[1764773981364,1.10451063,898.9,898.51,1.105]
[1764773982168,1.10451063,898.87,898.51,1.105]
[1764773982368,1.10451063,898.82,898.51,1.105]
[1764773982569,1.10451063,898.69,898.51,1.105]
[1764773983067,0.19365879,899.03,898.51,1.105]
[1764773983068,1.10451063,898.66,898.51,1.105]
[1764773983364,1.10451063,898.58,898.51,1.105]
[1764773983565,1.10451063,898.55,898.51,1.105]
[1764773984069,1.10451063,898.56,898.51,1.105]
[1764773984368,1.10451063,898.54,898.51,1.105]
[1764773985471,1.10451063,898.56,898.51,1.105]
[1764773986267,1.10451063,898.57,898.51,1.105]
[1764773986771,1.10451063,898.55,898.51,1.105]
[1764773987270,1.10451063,898.53,898.51,1.105]
[1764773987470,1.65111129,898.68,898.51,1.105]
[1764773987975,1.65111129,898.64,898.51,1.105]
[1764773988171,1.65111129,898.62,898.51,1.105]
[1764773988372,1.65111129,898.63,898.51,1.105]
[1764773988677,2.67575052,899.28,898.51,0.91120425]
[1764773988877,2.67575052,899.28,898.49,1.107]
[1764773989178,2.67575052,899.01,897.63,0.00781494]
[1764773989378,1.09931059,898.24,896.73,0.01088214]
[1764773989574,1.09931059,898.17,896.68,0.19379251]
[1764773989773,1.09931059,898.23,896.68,0.19379251]
[1764773990078,1.09931059,898.17,896.68,0.19379251]
[1764773990273,1.09931059,898.18,896.28,0.82462803]
[1764773990475,1.09931059,898.1,896.2,0.82462803]
[1764773990673,1.09931059,897.97,896.43,0.19396588]
[1764773990877,1.09931059,897.85,895.95,0.82462803]
[1764773991075,3.74605073,899.21,896.06,0.19402914]
[1764773991076,1.09931059,897.67,896.06,0.19402914]
[1764773991279,1.09931059,897.76,896.06,0.19402914]
[1764773991674,0.19404862,897.34,896.07,0.888]
[1764773992279,0.19404862,897.34,896.08,1.061]
[1764774006092,0.81930304,897.29,896.08,1.061]
[1764774006489,0.81930304,897.24,896.08,1.061]
[1764774006689,0.81930304,897.23,896.08,1.061]
[1764774006994,0.81930304,897.27,896.08,1.061]
[1764774007293,2.67575052,898.2,896.08,1.061]
[1764774007294,0.81930304,897.44,896.08,1.061]
[1764774007488,0.81930304,897.68,896.08,1.061]
[1764774007793,0.81930304,898.24,896.08,1.061]
[1764774007990,0.19395399,897.89,896.08,1.061]
[1764774008392,0.81792233,898.4,896.08,1.061]
[1764774008592,0.81792233,898.41,896.08,1.061]
[1764774008791,0.81792233,898.19,896.08,1.061]
[1764774008988,2.67575052,899.38,896.08,1.061]
[1764774008989,0.81792233,898.17,896.08,1.061]
[1764774009392,0.81792233,898.36,896.08,1.061]
[1764774009590,0.19389347,898.24,896.08,1.061]
[1764774009797,0.81792233,898.62,896.21,0.81359703]
[1764774009996,0.19388213,898.21,896.18,0.81359703]
[1764774010192,0.19388213,898.21,896.24,0.81359703]
[1764774010393,0.19388213,898.21,896.26,0.81359703]
[1764774010694,0.81792233,898.64,896.27,0.81359703]
[1764774010891,0.81792233,898.64,896.11,1.0928119]
[1764774010892,0.19383191,898.45,896.45,0.81359703]
[1764774011092,0.19383191,898.45,896.08,1.061]
[1764774011093,0.81792233,899.02,896.57,0.81359703]
[1764774011294,0.81792233,899.11,896.74,0.81359703]
[1764774011496,0.81792233,899.11,896.08,1.061]
[1764774011497,0.19376824,898.88,896.84,0.81359703]
[1764774011706,0.81792233,899.25,896.87,0.81359703]
[1764774011998,0.1937073,899.02,896.98,0.81359703]
[1764774012198,0.81792233,899.4,897.01,0.81359703]
[1764774012396,0.19368088,899.12,897.04,0.81359703]
[1764774012596,0.19368088,899.12,897.09,0.81359703]
[1764774012895,0.19368088,899.12,896.08,1.061]
[1764774012896,0.19368088,899.12,897.11,0.81359703]
[1764774013094,0.19368088,899.12,897.05,0.81359703]
[1764774013399,0.19368088,899.12,897.13,0.81359703]
[1764774013595,0.19368088,899.12,897.12,0.81359703]
[1764774014099,0.81792233,899.57,897.15,0.81359703]
[1764774014295,0.19365879,899.17,897.31,0.81359703]
[1764774014496,0.81792233,899.76,897.31,0.81359703]
[1764774014700,3.75486733,901.05,897.23,0.81359703]
[1764774014701,0.19364101,899.13,897.23,0.81359703]
[1764774015495,0.81792233,899.69,897.21,0.81359703]
[1764774015695,0.19364747,899.17,897.2,0.81359703]
[1764774015896,0.19364747,899.17,896.23,2.73202976]
[1764774015897,0.19364747,899.17,897.13,0.81359703]
[1764774016296,0.19364747,899.17,897.05,0.81359703]
[1764774016602,0.19364747,899.17,897.02,0.81359703]
[1764774017203,0.19364747,899.17,897.0,0.81359703]
[1764774017399,0.19364747,899.17,896.95,0.81359703]
[1764774017599,0.19364747,899.17,896.63,1.63921785]
[1764774017600,0.19364747,899.17,897.03,0.81359703]
[1764774017999,0.19364747,899.17,897.01,0.81359703]
[1764774018198,0.19364747,899.17,897.0,0.81359703]
[1764774018601,0.19364747,899.17,896.1,0.01094776]
[1764774018602,0.19364747,899.17,897.01,0.81359703]
[1764774018800,0.19364747,899.17,896.96,0.81359703]
[1764774019001,0.19364747,899.17,896.81,0.81359703]
[1764774019209,0.19364747,899.17,896.71,0.81359703]
[1764774019407,0.81792233,899.12,896.63,0.81359703]
[1764774019709,0.81792233,899.05,896.56,0.81359703]
[1764774020009,0.81792233,899.06,896.57,0.81359703]
[1764774021007,0.81792233,899.05,896.56,0.81359703]
[1764774021211,0.81792233,899.06,896.56,0.81359703]
[1764774021403,0.81792233,899.06,895.66,0.00943246]
[1764774021404,0.81792233,898.91,896.42,0.81359703]
[1764774021604,0.81792233,898.89,896.41,0.81359703]
[1764774021810,0.81792233,898.9,896.42,0.81359703]
[1764774022106,0.81792233,898.92,896.43,0.81359703]
[1764774022406,0.81792233,898.8,896.32,0.81359703]
[1764774022610,0.81792233,898.75,896.27,0.81359703]
[1764774022809,0.81792233,898.75,896.33,0.853]
[1764774023206,0.81792233,898.65,896.33,0.853]
[1764774023407,0.81792233,898.64,896.33,0.853]
[1764774023607,0.81792233,898.61,896.33,0.853]
[1764774023808,0.81792233,898.6,896.33,0.853]
[1764774024011,0.81792233,898.59,896.33,0.853]
[1764774024207,0.81792233,898.6,896.33,0.853]
[1764774024407,0.81792233,898.57,896.33,0.853]
[1764774024609,0.81792233,898.55,896.33,0.853]
[1764774024810,0.81792233,898.54,896.33,0.853]
[1764774025107,0.19364747,899.17,896.33,0.853]
[1764774025108,0.81792233,898.55,896.33,0.853]
[1764774025316,0.81792233,898.54,896.33,0.853]
[1764774025511,0.81792233,898.55,896.33,0.853]
[1764774025711,0.19364747,899.17,896.33,0.853]
[1764774025712,0.81792233,898.54,896.33,0.853]
[1764774025914,0.81792233,898.53,896.33,0.853]
[1764774026114,0.81792233,898.48,896.33,0.853]
[1764774026315,0.19364747,899.17,896.33,0.853]
[1764774026316,0.81792233,898.44,896.33,0.853]
[1764774026816,0.81792233,898.48,896.33,0.853]
[1764774027315,1.09931059,898.64,896.33,0.853]
[1764774027316,0.81792233,898.39,896.33,0.853]
[1764774027511,0.19364747,899.17,896.33,0.853]
[1764774027512,0.81792233,898.18,896.33,0.853]
[1764774027711,0.81792233,898.16,896.33,0.853]
[1764774027912,0.81792233,898.17,896.33,0.853]
[1764774028515,0.81792233,897.94,896.33,0.853]
[1764774028814,0.81792233,897.95,896.33,0.853]
[1764774029412,0.81792233,898.0,896.33,0.853]
[1764774029613,0.81792233,898.01,896.33,0.853]
[1764774030217,0.81792233,898.02,896.33,0.853]
[1764774030517,0.81792233,898.01,896.33,0.853]
[1764774030917,0.81792233,898.12,896.33,0.853]
[1764774031114,0.81792233,898.13,896.33,0.853]
[1764774031517,0.81792233,898.26,896.33,0.853]
[1764774031713,0.81792233,898.31,896.33,0.853]
[1764774032219,0.81792233,898.3,896.33,0.853]
[1764774032419,1.09931059,898.46,896.33,0.853]
[1764774032420,0.81792233,898.28,896.33,0.853]
[1764774032719,0.81792233,898.43,896.33,0.853]
[1764774032924,0.81792233,898.47,896.33,0.853]
[1764774033116,0.81792233,898.66,896.33,0.853]
[1764774033414,2.67575052,899.63,896.33,0.853]
[1764774033415,0.81792233,898.79,896.38,0.81359703]
[1764774033617,0.81792233,898.83,896.41,0.81359703]
[1764774033816,0.81792233,898.89,896.47,0.81359703]
[1764774034020,0.01090566,899.69,896.49,0.81359703]
[1764774034021,0.81792233,898.91,896.49,0.81359703]
[1764774034822,0.81792233,898.91,896.5,0.81359703]
[1764774035021,0.81792233,898.91,896.33,1.9458119]
[1764774035022,0.81792233,898.89,896.47,0.81359703]
[1764774035221,0.81792233,898.91,896.49,0.81359703]
[1764774036023,0.81792233,898.92,896.51,0.81359703]
[1764774036318,0.81792233,898.91,896.5,0.81359703]
[1764774036524,0.81792233,898.9,896.49,0.81359703]
[1764774036721,0.81792233,898.9,896.33,1.9458119]
[1764774036722,0.81792233,898.91,896.5,0.81359703]
[1764774036921,0.81792233,898.86,896.46,0.81359703]
[1764774037122,0.81792233,898.75,896.35,0.81359703]
[1764774037422,0.81792233,898.75,896.33,0.853]
[1764774037423,0.81792233,898.67,896.33,0.853]
[1764774037618,0.81792233,898.62,896.33,0.853]
[1764774038121,0.81792233,898.63,896.33,0.853]
[1764774038418,2.67575052,899.59,896.33,0.853]
[1764774038419,0.81792233,898.62,896.33,0.853]
[1764774039218,0.81792233,898.61,896.33,0.853]
[1764774039515,0.81792233,898.64,896.33,0.853]
[1764774039722,0.81792233,898.77,896.38,0.81359703]
[1764774039920,0.81792233,898.78,896.39,0.81359703]
[1764774040118,0.81792233,898.78,896.38,0.81359703]
[1764774040620,0.81791081,898.77,896.38,0.81495195]
[1764774040842,0.81791081,898.72,896.38,8.55387194]
[1764774041219,0.81791081,898.74,896.38,8.55387194]
[1764774041418,1.09931059,898.9,896.38,8.55387194]
[1764774041419,0.81791081,898.73,896.38,8.55387194]
[1764774041623,0.81791081,898.8,896.42,0.81495195]
[1764774041819,0.81791081,898.92,896.54,0.81495195]
[1764774042020,0.81791081,898.92,896.53,0.81495195]
[1764774042226,0.81791081,898.93,896.54,0.81495195]
[1764774042521,0.81791081,898.84,896.45,0.81495195]
[1764774042924,0.81791081,898.77,896.39,0.81495195]
[1764774043122,0.81791081,898.76,896.38,9.36882389]
[1764774043325,0.81791081,898.77,896.38,9.36882389]
[1764774043523,0.81791081,898.68,896.38,8.55387194]
[1764774043727,0.81791081,898.6,896.38,8.55387194]
[1764774044126,0.81791081,898.61,896.38,8.55387194]
[1764774044725,0.81791081,898.77,896.39,0.81495195]
[1764774044926,0.81791081,898.78,896.39,0.81495195]
[1764774045229,0.81791081,898.77,896.38,8.55387194]
[1764774045426,0.81791081,898.77,896.38,9.36882389]
[1764774045626,0.81791081,898.73,896.38,9.36882389]
[1764774045829,0.81791081,898.68,896.38,8.55387194]
[1764774046525,0.81791081,898.67,896.38,8.55387194]
[1764774046929,0.81791081,898.68,896.38,8.55387194]
[1764774047225,0.81791081,898.69,896.38,8.55387194]
[1764774047430,0.81791081,898.68,896.38,8.55387194]
[1764774047727,0.81791081,898.46,896.38,8.55387194]
[1764774048130,0.81791081,898.54,896.38,8.55387194]
[1764774048329,0.81791081,898.66,896.38,8.55387194]
[1764774049133,2.67575052,899.62,896.38,8.55387194]
[1764774049134,0.81791081,898.61,896.38,8.55387194]
[1764774049729,0.81791081,898.55,896.38,8.55387194]
[1764774049929,0.81791081,898.55,896.39,1.098]
[1764774050229,2.67575052,899.52,896.39,1.098]
[1764774050230,0.81791081,898.37,896.39,1.098]
[1764774050433,0.81791081,898.26,896.39,1.098]
[1764774050626,0.81791081,898.25,896.39,1.098]
[1764774050832,0.81791081,898.26,896.39,1.098]
[1764774051230,0.01156395,899.16,896.39,1.098]
[1764774051231,0.81791081,898.23,896.39,1.098]
[1764774051430,0.81791081,898.05,896.39,1.098]
[1764774051636,0.81791081,898.06,896.39,1.098]
[1764774051835,0.81791081,898.1,896.39,1.098]
[1764774052432,0.81791081,898.13,896.39,1.098]
[1764774052636,0.81791081,898.15,896.39,1.098]
[1764774052939,0.81791081,898.22,896.39,1.098]
[1764774053337,0.81791081,898.24,896.39,1.098]
[1764774053636,2.67575052,899.22,896.39,1.098]
[1764774053637,0.81791081,898.34,896.39,1.098]
[1764774053838,0.81791081,898.33,896.39,1.098]
[1764774054236,1.64896588,898.65,896.39,1.098]
[1764774054237,0.81791081,898.31,896.39,1.098]
[1764774054636,0.81791081,898.3,896.39,1.098]
[1764774055035,0.81791081,898.32,896.39,1.098]
[1764774055234,2.67575052,899.27,896.39,1.098]
[1764774055235,0.81791081,898.3,896.39,1.098]
[1764774055538,0.81791081,898.3,896.4,1.101]
[1764774056138,0.81791081,898.12,896.4,1.101]
[1764774056440,0.81791081,898.08,896.4,1.101]
[1764774057435,0.81791081,898.09,896.4,1.101]
[1764774057638,0.81791081,898.12,896.4,1.101]
[1764774057838,0.81791081,898.16,896.4,1.101]
[1764774058239,0.81791081,898.12,896.4,1.101]
[1764774058438,0.81791081,898.21,896.4,1.101]
[1764774060034,0.81791081,898.14,896.4,1.101]
[1764774060437,0.00889612,899.04,896.4,1.101]
[1764774060438,0.81791081,898.12,896.4,1.101]
[1764774060838,0.81791081,898.09,896.4,1.101]
[1764774061035,0.81791081,897.93,896.4,1.101]
[1764774061236,0.81791081,897.89,896.4,1.101]
[1764774061435,0.81791081,897.95,896.4,1.101]
[1764774061735,2.67575052,898.92,896.4,1.101]
[1764774061736,0.81791081,898.04,896.4,1.101]
[1764774061941,0.81791081,898.12,896.4,1.101]
[1764774062141,0.81791081,898.11,896.4,1.101]
[1764774062341,0.81791081,897.93,896.4,1.101]
[1764774062541,2.67575052,899.08,896.4,1.101]
[1764774062542,0.81791081,897.92,896.4,1.101]
[1764774062740,0.81791081,897.91,896.4,1.101]
[1764774062941,0.81791081,897.92,896.4,1.101]
[1764774063841,0.81791081,897.93,896.4,1.101]
[1764774064038,0.81791081,898.09,896.4,1.101]
[1764774064242,0.81791081,898.19,896.4,1.101]
[1764774064836,0.01070098,899.09,896.4,1.101]
[1764774064837,0.81791081,898.24,896.4,1.101]
[1764774065140,0.81791081,898.29,896.42,0.81495195]
[1764774065543,0.81791081,898.28,896.41,0.81495195]
[1764774065740,0.81791081,898.33,896.46,0.81495195]
[1764774065940,0.81791081,898.39,896.53,0.81495195]
[1764774066242,0.81791081,898.4,896.53,0.81495195]
[1764774066538,0.81791081,898.38,896.51,0.81495195]
[1764774066737,2.67575052,899.36,896.42,0.81495195]
[1764774066738,0.81791081,898.29,896.42,0.81495195]
[1764774066942,0.81791081,898.28,896.41,0.81495195]
[1764774067237,0.81791081,898.23,896.46,0.81495195]
[1764774067439,0.81791081,897.99,896.4,1.101]
[1764774067938,0.81791081,897.98,896.4,1.101]
[1764774068138,0.81791081,897.95,896.4,1.101]
[1764774068341,0.81791081,897.83,896.4,1.101]
[1764774068536,1.09931059,897.99,896.4,1.101]
[1764774068537,0.81791081,897.81,896.4,1.101]
[1764774068735,0.81791081,897.83,896.39,1.098]
[1764774070237,0.01211231,898.73,896.39,1.098]
[1764774070238,0.81791081,897.81,896.39,1.098]
[1764774070442,0.81791081,897.68,896.39,1.098]
[1764774070644,0.81791081,897.69,896.39,1.098]
[1764774070944,0.81791081,897.69,896.4,1.182]
[1764774071245,0.81791081,897.7,896.4,1.182]
[1764774071639,0.01423251,898.59,896.4,1.182]
[1764774071640,0.81791081,897.6,896.4,1.182]
[1764774071846,0.81791081,897.62,896.4,1.182]
[1764774072044,0.81791081,897.7,896.4,1.182]
[1764774072244,2.67575052,898.67,896.4,1.182]
[1764774072245,0.81791081,897.71,896.4,1.182]
[1764774072541,0.81791081,897.69,896.4,1.182]
[1764774073845,0.81791081,897.63,896.4,1.182]
[1764774074046,0.81791081,897.59,896.4,1.182]
[1764774074243,0.81791081,897.45,896.4,1.182]
[1764774074541,0.81791081,897.49,896.4,1.182]
[1764774074741,2.67575052,898.51,896.4,1.182]
[1764774074742,0.81791081,897.48,896.4,1.182]
[1764774075042,0.81791081,897.46,896.4,1.182]
[1764774075243,0.81791081,897.31,896.4,1.182]
[1764774075441,0.81791081,897.28,896.4,1.182]
[1764774075745,1.09931059,897.44,896.4,1.182]
[1764774075746,0.81791081,897.37,896.4,1.182]
[1764774075946,0.81791081,897.54,896.4,1.182]
[1764774076143,0.81791081,897.58,896.4,1.182]
[1764774076342,2.67575052,898.47,896.4,1.182]
[1764774076343,0.81791081,897.54,896.4,1.182]
[1764774076648,0.81791081,897.58,896.4,1.182]
[1764774076843,0.81791081,897.66,896.4,1.182]
[1764774077250,0.81791081,897.69,896.4,1.182]
[1764774077447,1.64896588,898.01,896.4,1.182]
[1764774077448,0.81791081,897.76,896.4,1.182]
[1764774077644,0.81791081,897.74,896.4,1.182]
[1764774077844,0.81791081,897.76,896.4,1.182]
[1764774078149,0.81791081,897.83,896.4,1.182]
[1764774078345,0.81791081,897.84,896.4,1.182]
[1764774078650,2.67575052,898.81,896.4,1.182]
[1764774078651,0.81791081,897.77,896.4,1.182]
[1764774079049,0.81791081,897.78,896.4,1.182]